[Event "Live Chess"]
[Site "Chess.com"]
[Date "2023.05.20"]
[Round "-"]
[White "Supertromp"]
[Black "JanMur7"]
[Result "1-0"]
[WhiteElo "2170"]
[BlackElo "1984"]
[TimeControl "300"]
[EndTime "10:01:53 PDT"]
[Termination "Supertromp won by resignation"]

1. e4 {[%clk 0:04:55.8]} 1... e5 {[%clk 0:04:58.8]} 2. Nf3 {[%clk 0:04:51.9]}
2... Nc6 {[%clk 0:04:58.1]} 3. Bc4 {[%clk 0:04:50.6]} 3... Bc5 {[%clk
0:04:56.9]} 4. c3 {[%clk 0:04:49.7]} 4... Nf6 {[%clk 0:04:54.5]} 5. d4 {[%clk
0:04:48.9]} 5... exd4 {[%clk 0:04:54.4]} 6. b4 {[%clk 0:04:48.2]} 6... Bb6
{[%clk 0:04:50.1]} 7. e5 {[%clk 0:04:46.3]} 7... d5 {[%clk 0:04:48.4]} 8. exf6
{[%clk 0:04:45.6]} 8... dxc4 {[%clk 0:04:47.4]} 9. Qe2+ {[%clk 0:04:45]} 9...
Be6 {[%clk 0:04:45.3]} 10. b5 {[%clk 0:04:44.5]} 10... Na5 {[%clk 0:04:33.8]}
11. fxg7 {[%clk 0:04:42.6]} 11... Rg8 {[%clk 0:04:31.6]} 12. cxd4 {[%clk
0:04:25.7]} 12... Bxd4 {[%clk 0:04:21.5]} 13. Nxd4 {[%clk 0:04:24.3]} 13... Qxd4
{[%clk 0:04:20.3]} 14. Bb2 {[%clk 0:04:23.9]} 14... Qd3 {[%clk 0:04:11.8]} 15.
Bf6 {[%clk 0:04:12.2]} 15... a6 {[%clk 0:03:37.5]} 16. Nc3 {[%clk 0:03:58]}
16... axb5 {[%clk 0:03:14.5]} 17. Nxb5 {[%clk 0:03:51.4]} 17... Qxe2+ {[%clk
0:03:04.2]} 18. Kxe2 {[%clk 0:03:50.3]} 18... Kd7 {[%clk 0:03:03.3]} 19. Rhd1+
{[%clk 0:03:36.4]} 19... Kc6 {[%clk 0:03:00]} 20. Nd4+ {[%clk 0:03:34.2]} 1-0

[Event "Live Chess"]
[Site "Chess.com"]
[Date "2023.05.20"]
[Round "-"]
[White "NAZRIZ1977"]
[Black "grillage"]
[Result "1-0"]
[WhiteElo "2132"]
[BlackElo "1851"]
[TimeControl "300"]
[EndTime "10:01:54 PDT"]
[Termination "NAZRIZ1977 won by resignation"]

1. c4 {[%clk 0:04:57.1]} 1... b6 {[%clk 0:04:57.5]} 2. d3 {[%clk 0:04:55.3]}
2... Bb7 {[%clk 0:04:56.3]} 3. Nd2 {[%clk 0:04:54.9]} 3... f5 {[%clk 0:04:50.6]}
4. Ngf3 {[%clk 0:04:53.7]} 4... Nf6 {[%clk 0:04:49.7]} 5. g3 {[%clk 0:04:53.2]}
5... e6 {[%clk 0:04:42.6]} 6. Bg2 {[%clk 0:04:52.6]} 6... Be7 {[%clk 0:04:35.8]}
7. O-O {[%clk 0:04:51.6]} 7... O-O {[%clk 0:04:34.7]} 8. Rb1 {[%clk 0:04:48.4]}
8... Kh8 {[%clk 0:04:26.4]} 9. b4 {[%clk 0:04:44.9]} 9... Na6 {[%clk 0:04:23.3]}
10. a3 {[%clk 0:04:43.5]} 10... Qe8 {[%clk 0:04:20.9]} 11. e3 {[%clk 0:04:33.1]}
11... Qh5 {[%clk 0:04:12.1]} 12. Ne5 {[%clk 0:04:30.8]} 12... Qxd1 {[%clk
0:04:10.3]} 13. Rxd1 {[%clk 0:04:28.2]} 13... Bxg2 {[%clk 0:04:09.1]} 14. Kxg2
{[%clk 0:04:27.4]} 14... d6 {[%clk 0:03:59.8]} 15. Nc6 {[%clk 0:04:23.7]} 15...
Rf7 {[%clk 0:03:45.6]} 16. Nf3 {[%clk 0:04:22]} 16... h6 {[%clk 0:03:37.8]} 17.
Nh4 {[%clk 0:04:18.4]} 17... Kh7 {[%clk 0:03:35.5]} 18. f4 {[%clk 0:04:16.2]}
18... Ng4 {[%clk 0:03:29.9]} 19. Nf3 {[%clk 0:04:08.8]} 19... Nb8 {[%clk
0:03:21.1]} 20. Ncd4 {[%clk 0:03:58.9]} 20... e5 {[%clk 0:03:14.6]} 21. Nb5
{[%clk 0:03:57.7]} 21... Bf8 {[%clk 0:03:01]} 22. h3 {[%clk 0:03:56.3]} 22...
Nf6 {[%clk 0:02:59]} 23. fxe5 {[%clk 0:03:55.3]} 23... dxe5 {[%clk 0:02:45.1]}
24. Nxe5 {[%clk 0:03:53.6]} 24... Re7 {[%clk 0:02:43.8]} 25. Bb2 {[%clk
0:03:50.1]} 25... a6 {[%clk 0:02:38.5]} 26. Nd4 {[%clk 0:03:47.3]} 26... Nbd7
{[%clk 0:02:33.4]} 27. Nxd7 {[%clk 0:03:37]} 27... Nxd7 {[%clk 0:02:32.4]} 28.
Nxf5 {[%clk 0:03:35.6]} 28... Rf7 {[%clk 0:02:24.3]} 29. e4 {[%clk 0:03:33]}
29... a5 {[%clk 0:02:14.9]} 30. Bc3 {[%clk 0:03:18.1]} 30... axb4 {[%clk
0:02:12.2]} 31. axb4 {[%clk 0:03:14.8]} 31... Ra2+ {[%clk 0:02:09.8]} 32. Rb2
{[%clk 0:03:08.1]} 32... Ra4 {[%clk 0:02:08.9]} 33. Rdb1 {[%clk 0:03:05.1]}
33... g6 {[%clk 0:02:00.2]} 34. Ne3 {[%clk 0:03:04]} 34... Bd6 {[%clk
0:01:56.2]} 35. Nd5 {[%clk 0:02:57.2]} 35... Ne5 {[%clk 0:01:46.5]} 36. Bxe5
{[%clk 0:02:53.9]} 36... Bxe5 {[%clk 0:01:45.5]} 37. Rf2 {[%clk 0:02:53.4]}
37... Rxf2+ {[%clk 0:01:42.2]} 38. Kxf2 {[%clk 0:02:52.5]} 38... Ra2+ {[%clk
0:01:41.7]} 39. Kf3 {[%clk 0:02:51.7]} 39... Ra3 {[%clk 0:01:39.2]} 40. Rd1
{[%clk 0:02:40.8]} 40... Rb3 {[%clk 0:01:33.5]} 41. g4 {[%clk 0:02:19]} 41...
Bd6 {[%clk 0:01:24.5]} 42. b5 {[%clk 0:02:16.5]} 42... Rb2 {[%clk 0:01:16.2]}
43. Re1 {[%clk 0:01:56.7]} 43... Rh2 {[%clk 0:01:08.6]} 44. e5 {[%clk
0:01:55.6]} 44... Bc5 {[%clk 0:01:07.4]} 45. e6 {[%clk 0:01:51.1]} 45... Rxh3+
{[%clk 0:00:54]} 46. Kg2 {[%clk 0:01:49.8]} 46... Rxd3 {[%clk 0:00:52.2]} 47. e7
{[%clk 0:01:48.8]} 47... Bxe7 {[%clk 0:00:51.4]} 48. Rxe7+ {[%clk 0:01:47.7]}
48... Kg8 {[%clk 0:00:50.5]} 49. Rxc7 {[%clk 0:01:46.6]} 1-0

[Event "Live Chess"]
[Site "Chess.com"]
[Date "2023.05.20"]
[Round "-"]
[White "TDCMF"]
[Black "siddu198"]
[Result "0-1"]
[WhiteElo "340"]
[BlackElo "1617"]
[TimeControl "300"]
[EndTime "10:01:56 PDT"]
[Termination "siddu198 won on time"]

1. e4 {[%clk 0:04:57.9]} 1... e5 {[%clk 0:04:59.1]} 2. Nf3 {[%clk 0:04:56.3]}
2... b6 {[%clk 0:04:57.1]} 3. Bc4 {[%clk 0:04:46.7]} 3... Bb7 {[%clk 0:04:56.1]}
4. d3 {[%clk 0:04:31.1]} 4... f6 {[%clk 0:04:48.6]} 5. O-O {[%clk 0:04:12]} 5...
Nh6 {[%clk 0:04:40.3]} 6. h3 {[%clk 0:04:04.2]} 6... d5 {[%clk 0:04:38.6]} 7.
Nc3 {[%clk 0:03:48.8]} 7... dxc4 {[%clk 0:04:37.4]} 8. d4 {[%clk 0:03:36.6]}
8... exd4 {[%clk 0:04:31.6]} 9. Nxd4 {[%clk 0:03:27.3]} 9... c5 {[%clk
0:04:25.7]} 10. Ne6 {[%clk 0:03:04.1]} 10... Qxd1 {[%clk 0:04:22]} 11. Rxd1
{[%clk 0:02:59.4]} 11... Na6 {[%clk 0:04:19.4]} 12. Nxf8 {[%clk 0:02:25]} 12...
Rxf8 {[%clk 0:04:14.5]} 13. Bf4 {[%clk 0:01:58.1]} 13... Rf7 {[%clk 0:03:52.4]}
14. Rd2 {[%clk 0:01:08.6]} 14... Nb4 {[%clk 0:03:52.3]} 15. Rad1 {[%clk
0:00:55.9]} 15... Nc6 {[%clk 0:03:51.3]} 16. Nd5 {[%clk 0:00:49.6]} 16... Nd4
{[%clk 0:03:42.8]} 17. Nc7+ {[%clk 0:00:44]} 17... Rxc7 {[%clk 0:03:35.9]} 18.
Bxc7 {[%clk 0:00:39.4]} 18... Rc8 {[%clk 0:03:23.6]} 19. c3 {[%clk 0:00:37.4]}
19... Rxc7 {[%clk 0:03:22.8]} 20. cxd4 {[%clk 0:00:36.5]} 20... cxd4 {[%clk
0:03:21.6]} 21. Rxd4 {[%clk 0:00:35.5]} 21... Re7 {[%clk 0:03:17.8]} 22. Rd8+
{[%clk 0:00:30.2]} 22... Kf7 {[%clk 0:03:16.8]} 23. R1d7 {[%clk 0:00:27.3]}
23... Bxe4 {[%clk 0:03:05.3]} 24. Rxe7+ {[%clk 0:00:21.6]} 24... Kxe7 {[%clk
0:03:04.5]} 25. Rd4 {[%clk 0:00:19]} 25... f5 {[%clk 0:02:58.1]} 26. b3 {[%clk
0:00:15.9]} 26... cxb3 {[%clk 0:02:55.5]} 27. axb3 {[%clk 0:00:15]} 27... Nf7
{[%clk 0:02:51.6]} 28. Rc4 {[%clk 0:00:12.9]} 28... Kd6 {[%clk 0:02:47.5]} 29.
b4 {[%clk 0:00:11.2]} 29... Kd5 {[%clk 0:02:46.3]} 30. Rc7 {[%clk 0:00:06.7]}
30... Ke6 {[%clk 0:02:44]} 31. Rxa7 {[%clk 0:00:05.7]} 31... b5 {[%clk
0:02:39.1]} 32. Ra5 {[%clk 0:00:03.3]} 32... Bd3 {[%clk 0:02:37.4]} 0-1

[Event "Live Chess"]
[Site "Chess.com"]
[Date "2023.05.20"]
[Round "-"]
[White "NatashaRegan"]
[Black "daveeeeR"]
[Result "1-0"]
[WhiteElo "1841"]
[BlackElo "1260"]
[TimeControl "300"]
[EndTime "10:02:02 PDT"]
[Termination "NatashaRegan won on time"]

1. e4 {[%clk 0:04:55.7]} 1... c5 {[%clk 0:04:56.6]} 2. d4 {[%clk 0:04:53.9]}
2... cxd4 {[%clk 0:04:54.7]} 3. c3 {[%clk 0:04:53.2]} 3... Nc6 {[%clk
0:04:54.4]} 4. cxd4 {[%clk 0:04:51.3]} 4... d5 {[%clk 0:04:52.6]} 5. exd5 {[%clk
0:04:37.9]} 5... Qxd5 {[%clk 0:04:51.1]} 6. Be3 {[%clk 0:04:35.3]} 6... e5
{[%clk 0:04:45.1]} 7. Nc3 {[%clk 0:04:31.8]} 7... Bb4 {[%clk 0:04:28.3]} 8. a3
{[%clk 0:04:23.8]} 8... Bxc3+ {[%clk 0:04:25]} 9. bxc3 {[%clk 0:04:22.9]} 9...
exd4 {[%clk 0:04:19.2]} 10. cxd4 {[%clk 0:04:21.1]} 10... Nf6 {[%clk 0:04:12.3]}
11. Nf3 {[%clk 0:04:17.2]} 11... O-O {[%clk 0:04:09.6]} 12. Bd3 {[%clk
0:04:12.5]} 12... Bg4 {[%clk 0:04:07.7]} 13. Be2 {[%clk 0:04:07.2]} 13... Rfe8
{[%clk 0:03:57.9]} 14. O-O {[%clk 0:04:05.6]} 14... Rad8 {[%clk 0:03:46.2]} 15.
Rb1 {[%clk 0:04:03]} 15... Bc8 {[%clk 0:03:32.3]} 16. Rb5 {[%clk 0:04:00.7]}
16... Qd7 {[%clk 0:03:19.5]} 17. d5 {[%clk 0:03:56.5]} 17... Ne5 {[%clk
0:03:12.6]} 18. Nxe5 {[%clk 0:03:44.4]} 18... Rxe5 {[%clk 0:03:10.5]} 19. Bxa7
{[%clk 0:03:38.1]} 19... Rxd5 {[%clk 0:02:58.2]} 20. Qb1 {[%clk 0:03:32.9]}
20... Rxb5 {[%clk 0:02:31.8]} 21. Bxb5 {[%clk 0:03:30.2]} 21... Qd6 {[%clk
0:02:22.1]} 22. a4 {[%clk 0:03:23.4]} 22... b6 {[%clk 0:01:32.8]} 23. Bc4 {[%clk
0:03:07.3]} 23... Nd7 {[%clk 0:01:14.8]} 24. Rd1 {[%clk 0:03:01.8]} 24... Qc5
{[%clk 0:01:12.8]} 25. Bb5 {[%clk 0:02:47.6]} 25... g6 {[%clk 0:01:00.8]} 26.
Bxd7 {[%clk 0:02:42.7]} 26... Rxd7 {[%clk 0:00:54.9]} 27. Rxd7 {[%clk
0:02:39.4]} 27... Bxd7 {[%clk 0:00:54]} 28. Bxb6 {[%clk 0:02:37.2]} 28... Qc4
{[%clk 0:00:43.1]} 29. a5 {[%clk 0:02:35.8]} 29... Bb5 {[%clk 0:00:37.8]} 30. h3
{[%clk 0:02:28.2]} 30... h5 {[%clk 0:00:32]} 31. Be3 {[%clk 0:02:23.9]} 31...
Qd3 {[%clk 0:00:17.7]} 32. Qa1 {[%clk 0:02:21.1]} 32... Kh7 {[%clk 0:00:11.8]}
33. Qf6 {[%clk 0:02:17.3]} 33... Qf1+ {[%clk 0:00:09.5]} 34. Kh2 {[%clk
0:02:15.4]} 34... Qd3 {[%clk 0:00:00.8]} 35. Qxf7+ {[%clk 0:02:12.8]} 1-0

[Event "Live Chess"]
[Site "Chess.com"]
[Date "2023.05.20"]
[Round "-"]
[White "Alan_Richardson"]
[Black "ranvir123"]
[Result "1-0"]
[WhiteElo "1626"]
[BlackElo "875"]
[TimeControl "300"]
[EndTime "10:02:09 PDT"]
[Termination "Alan_Richardson won by checkmate"]

1. d4 {[%clk 0:04:59.2]} 1... e5 {[%clk 0:04:58.5]} 2. dxe5 {[%clk 0:04:57]}
2... Nc6 {[%clk 0:04:58.2]} 3. Nf3 {[%clk 0:04:55.3]} 3... Qe7 {[%clk
0:04:57.3]} 4. Bf4 {[%clk 0:04:44.2]} 4... Qb4+ {[%clk 0:04:55.2]} 5. Bd2 {[%clk
0:04:40.9]} 5... Qxb2 {[%clk 0:04:54]} 6. Nc3 {[%clk 0:04:39.9]} 6... Bb4 {[%clk
0:04:51.2]} 7. Rb1 {[%clk 0:04:36.6]} 7... Qa3 {[%clk 0:04:50]} 8. Nd5 {[%clk
0:04:20.1]} 8... Qa5 {[%clk 0:04:39.7]} 9. Nxb4 {[%clk 0:04:15.2]} 9... Nxb4
{[%clk 0:04:36]} 10. Bxb4 {[%clk 0:04:13.9]} 10... Qxa2 {[%clk 0:04:33.7]} 11.
e4 {[%clk 0:04:07.2]} 11... d6 {[%clk 0:04:31.5]} 12. exd6 {[%clk 0:04:04.3]}
12... cxd6 {[%clk 0:04:29.7]} 13. Bb5+ {[%clk 0:04:00.9]} 13... Bd7 {[%clk
0:04:28]} 14. Bxd7+ {[%clk 0:03:58.9]} 14... Kxd7 {[%clk 0:04:27.2]} 15. Qxd6+
{[%clk 0:03:56.8]} 15... Ke8 {[%clk 0:04:25.2]} 16. O-O {[%clk 0:03:53.4]} 16...
Rd8 {[%clk 0:04:22]} 17. Qe5+ {[%clk 0:03:49.7]} 17... Ne7 {[%clk 0:04:19.8]}
18. Qxe7# {[%clk 0:03:46.8]} 1-0

[Event "Live Chess"]
[Site "Chess.com"]
[Date "2023.05.20"]
[Round "-"]
[White "JohanKjeldahl"]
[Black "PureMellowPlan"]
[Result "1-0"]
[WhiteElo "1761"]
[BlackElo "629"]
[TimeControl "300"]
[EndTime "10:02:11 PDT"]
[Termination "JohanKjeldahl won by resignation"]

1. e4 {[%clk 0:04:57.7]} 1... e5 {[%clk 0:04:58.4]} 2. Nf3 {[%clk 0:04:56]} 2...
Nc6 {[%clk 0:04:50.4]} 3. d4 {[%clk 0:04:54.4]} 3... exd4 {[%clk 0:04:47.8]} 4.
c3 {[%clk 0:04:53.3]} 4... dxc3 {[%clk 0:04:46.1]} 5. Bc4 {[%clk 0:04:51.8]}
5... cxb2 {[%clk 0:04:42.9]} 6. Bxb2 {[%clk 0:04:50.8]} 6... Nf6 {[%clk
0:04:40.8]} 7. O-O {[%clk 0:04:48.5]} 7... Bc5 {[%clk 0:04:39.4]} 8. e5 {[%clk
0:04:44]} 8... Ng4 {[%clk 0:04:34.6]} 9. Qd5 {[%clk 0:04:38.8]} 9... Ncxe5
{[%clk 0:04:19]} 10. Nxe5 {[%clk 0:04:35.5]} 10... Nxe5 {[%clk 0:04:17.5]} 11.
Qxe5+ {[%clk 0:04:32.7]} 11... Be7 {[%clk 0:04:14.7]} 1-0

[Event "Live Chess"]
[Site "Chess.com"]
[Date "2023.05.20"]
[Round "-"]
[White "Ishaan1618"]
[Black "wot-not"]
[Result "0-1"]
[WhiteElo "787"]
[BlackElo "1476"]
[TimeControl "300"]
[EndTime "10:02:12 PDT"]
[Termination "wot-not won by checkmate"]

1. e4 {[%clk 0:04:40.9]} 1... e5 {[%clk 0:04:58]} 2. d3 {[%clk 0:04:39.8]} 2...
d6 {[%clk 0:04:57.6]} 3. d4 {[%clk 0:04:36.8]} 3... exd4 {[%clk 0:04:54.4]} 4.
Qxd4 {[%clk 0:04:34.7]} 4... Nc6 {[%clk 0:04:53.6]} 5. Qd1 {[%clk 0:04:30.5]}
5... Nf6 {[%clk 0:04:51.5]} 6. Bd2 {[%clk 0:04:28.2]} 6... Be7 {[%clk
0:04:50.7]} 7. Bd3 {[%clk 0:04:25.8]} 7... O-O {[%clk 0:04:49.4]} 8. e5 {[%clk
0:04:24]} 8... Nxe5 {[%clk 0:04:47.8]} 9. h3 {[%clk 0:04:11.8]} 9... Nxd3+
{[%clk 0:04:44.2]} 10. cxd3 {[%clk 0:04:08.7]} 10... d5 {[%clk 0:04:40.7]} 11.
Nf3 {[%clk 0:03:58.6]} 11... c6 {[%clk 0:04:36.8]} 12. Ne5 {[%clk 0:03:55.3]}
12... Bd6 {[%clk 0:04:22.4]} 13. a3 {[%clk 0:03:39.5]} 13... Bxe5 {[%clk
0:04:20.2]} 14. O-O {[%clk 0:03:31.1]} 14... Bxb2 {[%clk 0:04:17.7]} 15. Ra2
{[%clk 0:03:28.9]} 15... Bd4 {[%clk 0:04:14.1]} 16. Nc3 {[%clk 0:03:24.4]} 16...
Bxc3 {[%clk 0:04:12.2]} 17. Bxc3 {[%clk 0:03:22.9]} 17... d4 {[%clk 0:04:11.6]}
18. Bxd4 {[%clk 0:03:21.4]} 18... Qxd4 {[%clk 0:04:10.1]} 19. Qf3 {[%clk
0:03:16.3]} 19... Be6 {[%clk 0:04:05.3]} 20. Qe3 {[%clk 0:03:12.4]} 20... Qxe3
{[%clk 0:04:03.7]} 21. fxe3 {[%clk 0:03:11.3]} 21... Bxa2 {[%clk 0:04:02.7]} 22.
Ra1 {[%clk 0:03:07.2]} 22... Bd5 {[%clk 0:04:00.6]} 23. Rd1 {[%clk 0:03:03.9]}
23... Rfe8 {[%clk 0:04:00]} 24. Rc1 {[%clk 0:03:02.9]} 24... Rxe3 {[%clk
0:03:58.3]} 25. Rf1 {[%clk 0:02:59.5]} 25... Re2 {[%clk 0:03:57]} 26. Rf2 {[%clk
0:02:56.6]} 26... Re1+ {[%clk 0:03:55.7]} 27. Kh2 {[%clk 0:02:53.7]} 27... Rae8
{[%clk 0:03:54.7]} 28. Rf4 {[%clk 0:02:45.4]} 28... R1e2 {[%clk 0:03:53.3]} 29.
Kg1 {[%clk 0:02:40.8]} 29... Rxg2+ {[%clk 0:03:52.2]} 30. Kh1 {[%clk 0:02:27.1]}
30... Rg4+ {[%clk 0:03:50.5]} 31. Kh2 {[%clk 0:02:14.1]} 31... Re2+ {[%clk
0:03:49.4]} 32. Rf2 {[%clk 0:01:50.7]} 32... Rxf2# {[%clk 0:03:48.2]} 0-1

[Event "Live Chess"]
[Site "Chess.com"]
[Date "2023.05.20"]
[Round "-"]
[White "Misha145Chess"]
[Black "mementoluna"]
[Result "0-1"]
[WhiteElo "598"]
[BlackElo "1045"]
[TimeControl "300"]
[EndTime "10:02:14 PDT"]
[Termination "mementoluna won by checkmate"]

1. d4 {[%clk 0:04:57.1]} 1... Nf6 {[%clk 0:04:58.7]} 2. Nc3 {[%clk 0:04:52.9]}
2... d6 {[%clk 0:04:57.8]} 3. e4 {[%clk 0:04:51.4]} 3... Nbd7 {[%clk 0:04:57.1]}
4. Bg5 {[%clk 0:04:48.2]} 4... g6 {[%clk 0:04:55.3]} 5. Bb5 {[%clk 0:04:42.2]}
5... Bg7 {[%clk 0:04:53.3]} 6. Bc4 {[%clk 0:04:40.4]} 6... e5 {[%clk 0:04:49.9]}
7. dxe5 {[%clk 0:04:38.4]} 7... dxe5 {[%clk 0:04:49.3]} 8. Nd5 {[%clk
0:04:28.2]} 8... O-O {[%clk 0:04:46.7]} 9. Bb5 {[%clk 0:04:17]} 9... c6 {[%clk
0:04:43.8]} 10. Nxf6+ {[%clk 0:04:13.7]} 10... Nxf6 {[%clk 0:04:41.9]} 11. Bxf6
{[%clk 0:04:10]} 11... Qxd1+ {[%clk 0:04:40.6]} 12. Kxd1 {[%clk 0:04:06.3]}
12... cxb5 {[%clk 0:04:37.5]} 13. Bxg7 {[%clk 0:04:05.2]} 13... Kxg7 {[%clk
0:04:37]} 14. Nf3 {[%clk 0:04:03.6]} 14... Bg4 {[%clk 0:04:36.3]} 15. Ke2 {[%clk
0:03:58.4]} 15... Bxf3+ {[%clk 0:04:34.8]} 16. Kxf3 {[%clk 0:03:57.7]} 16...
Rad8 {[%clk 0:04:33.3]} 17. Rad1 {[%clk 0:03:54.3]} 17... Rxd1 {[%clk 0:04:32]}
18. Rxd1 {[%clk 0:03:53.3]} 18... a6 {[%clk 0:04:31.5]} 19. Rd7 {[%clk
0:03:51.5]} 19... Rb8 {[%clk 0:04:30.7]} 20. b3 {[%clk 0:03:49.1]} 20... a5
{[%clk 0:04:29.6]} 21. c4 {[%clk 0:03:48.3]} 21... bxc4 {[%clk 0:04:28.8]} 22.
bxc4 {[%clk 0:03:47.8]} 22... a4 {[%clk 0:04:28.2]} 23. c5 {[%clk 0:03:46.7]}
23... Kf8 {[%clk 0:04:24.9]} 24. Rd5 {[%clk 0:03:42.2]} 24... f6 {[%clk
0:04:23.7]} 25. g4 {[%clk 0:03:34.8]} 25... Ke7 {[%clk 0:04:22.7]} 26. g5 {[%clk
0:03:32.9]} 26... b5 {[%clk 0:04:14.1]} 27. gxf6+ {[%clk 0:03:31.4]} 27... Kxf6
{[%clk 0:04:13.2]} 28. h4 {[%clk 0:03:30]} 28... b4 {[%clk 0:04:12]} 29. c6
{[%clk 0:03:29.3]} 29... b3 {[%clk 0:04:10]} 30. axb3 {[%clk 0:03:27.5]} 30...
axb3 {[%clk 0:04:09.2]} 31. c7 {[%clk 0:03:25.9]} 31... Rc8 {[%clk 0:04:07.9]}
32. Rc5 {[%clk 0:03:16.3]} 32... b2 {[%clk 0:04:06.2]} 33. Rb5 {[%clk
0:03:15.2]} 33... Rxc7 {[%clk 0:04:04.3]} 34. Rxb2 {[%clk 0:03:14.3]} 34... Rc3+
{[%clk 0:04:02.6]} 35. Kg4 {[%clk 0:03:12.2]} 35... h5# {[%clk 0:04:01.7]} 0-1

[Event "Live Chess"]
[Site "Chess.com"]
[Date "2023.05.20"]
[Round "-"]
[White "RedRook90"]
[Black "lucaskk818"]
[Result "1-0"]
[WhiteElo "1970"]
[BlackElo "1869"]
[TimeControl "300"]
[EndTime "10:02:15 PDT"]
[Termination "RedRook90 won by checkmate"]

1. c4 {[%clk 0:04:59.5]} 1... c5 {[%clk 0:04:57.2]} 2. Nf3 {[%clk 0:04:57.8]}
2... Nc6 {[%clk 0:04:55.9]} 3. g3 {[%clk 0:04:57.4]} 3... g6 {[%clk 0:04:54.7]}
4. Bg2 {[%clk 0:04:56.9]} 4... Bg7 {[%clk 0:04:54.1]} 5. Nc3 {[%clk 0:04:56.4]}
5... e5 {[%clk 0:04:52.2]} 6. O-O {[%clk 0:04:55.3]} 6... d6 {[%clk 0:04:51.2]}
7. d3 {[%clk 0:04:51.3]} 7... Be6 {[%clk 0:04:43.2]} 8. Rb1 {[%clk 0:04:48.3]}
8... a5 {[%clk 0:04:40.4]} 9. a3 {[%clk 0:04:45.3]} 9... Nge7 {[%clk 0:04:26.7]}
10. e4 {[%clk 0:04:30.3]} 10... h6 {[%clk 0:04:18]} 11. Nd5 {[%clk 0:04:27.5]}
11... O-O {[%clk 0:04:10.1]} 12. b4 {[%clk 0:04:18.2]} 12... axb4 {[%clk
0:04:08]} 13. axb4 {[%clk 0:04:15.7]} 13... Bxd5 {[%clk 0:03:58.5]} 14. exd5
{[%clk 0:04:12.9]} 14... Nxb4 {[%clk 0:03:57.2]} 15. Bd2 {[%clk 0:04:11.8]}
15... Nxd3 {[%clk 0:03:37.9]} 16. Rxb7 {[%clk 0:03:50.5]} 16... e4 {[%clk
0:03:36.2]} 17. Ne1 {[%clk 0:03:44.8]} 17... Nxe1 {[%clk 0:03:35.6]} 18. Rxe1
{[%clk 0:03:41.8]} 18... f5 {[%clk 0:03:34.2]} 19. Qb3 {[%clk 0:03:34.8]} 19...
Rb8 {[%clk 0:03:27.9]} 20. Rb1 {[%clk 0:03:31.7]} 20... Rxb7 {[%clk 0:03:15.1]}
21. Qxb7 {[%clk 0:03:31.6]} 21... Rf7 {[%clk 0:03:06.5]} 22. Rb6 {[%clk
0:03:15.4]} 22... Nxd5 {[%clk 0:02:55.2]} 23. Qb8 {[%clk 0:03:11.2]} 23... Rf8
{[%clk 0:02:11.9]} 24. Qxd8 {[%clk 0:03:06.7]} 24... Rxd8 {[%clk 0:02:11.8]} 25.
cxd5 {[%clk 0:03:05.9]} 25... Be5 {[%clk 0:02:10.4]} 26. f3 {[%clk 0:03:00.4]}
26... exf3 {[%clk 0:02:04.8]} 27. Bxf3 {[%clk 0:03:00.3]} 27... Ra8 {[%clk
0:02:03.2]} 28. Bf4 {[%clk 0:02:49.6]} 28... Ra1+ {[%clk 0:01:54.9]} 29. Kg2
{[%clk 0:02:46.5]} 29... Ra2+ {[%clk 0:01:52.5]} 30. Kf1 {[%clk 0:02:35.9]}
30... Ra1+ {[%clk 0:01:48.9]} 31. Ke2 {[%clk 0:02:34.8]} 31... Ra2+ {[%clk
0:01:47.9]} 32. Ke1 {[%clk 0:02:27.9]} 32... Rxh2 {[%clk 0:01:22.9]} 33. Bxe5
{[%clk 0:02:23.7]} 33... dxe5 {[%clk 0:01:22.1]} 34. Rxg6+ {[%clk 0:02:23]}
34... Kf7 {[%clk 0:01:20.2]} 35. Rc6 {[%clk 0:02:16.3]} 35... e4 {[%clk
0:01:18.2]} 36. Be2 {[%clk 0:02:13.8]} 36... e3 {[%clk 0:01:14]} 37. Rxc5 {[%clk
0:02:07.8]} 37... Rg2 {[%clk 0:01:00.4]} 38. d6 {[%clk 0:01:59.4]} 38... Ke6
{[%clk 0:00:53.3]} 39. d7 {[%clk 0:01:56.4]} 39... Kxd7 {[%clk 0:00:51.3]} 40.
Rxf5 {[%clk 0:01:56]} 40... Rxg3 {[%clk 0:00:50.6]} 41. Rh5 {[%clk 0:01:54.1]}
41... Rg1+ {[%clk 0:00:47.4]} 42. Bf1 {[%clk 0:01:52.6]} 42... Rg6 {[%clk
0:00:45.5]} 43. Ke2 {[%clk 0:01:51]} 43... Ke7 {[%clk 0:00:38.1]} 44. Kxe3
{[%clk 0:01:48.6]} 44... Kf6 {[%clk 0:00:36.5]} 45. Bd3 {[%clk 0:01:46.6]} 45...
Rg3+ {[%clk 0:00:34.4]} 46. Kd4 {[%clk 0:01:46.1]} 46... Rg4+ {[%clk 0:00:33.2]}
47. Kc3 {[%clk 0:01:43.9]} 47... Kg7 {[%clk 0:00:30.3]} 48. Ra5 {[%clk
0:01:41.6]} 48... Rg5 {[%clk 0:00:28.6]} 49. Ra7+ {[%clk 0:01:40.6]} 49... Kf6
{[%clk 0:00:28.2]} 50. Ra6+ {[%clk 0:01:39.8]} 50... Kg7 {[%clk 0:00:27.6]} 51.
Ra4 {[%clk 0:01:39.3]} 51... Rc5+ {[%clk 0:00:25.7]} 52. Kd4 {[%clk 0:01:38.3]}
52... Rg5 {[%clk 0:00:24.3]} 53. Be4 {[%clk 0:01:37]} 53... Rg4 {[%clk
0:00:23.2]} 54. Ke5 {[%clk 0:01:33.9]} 54... Rg5+ {[%clk 0:00:22.2]} 55. Bf5
{[%clk 0:01:33.4]} 55... Rg1 {[%clk 0:00:20.2]} 56. Ra7+ {[%clk 0:01:32.9]}
56... Kh8 {[%clk 0:00:17.5]} 57. Kf6 {[%clk 0:01:31.4]} 57... h5 {[%clk
0:00:14.4]} 58. Rh7+ {[%clk 0:01:23.7]} 58... Kg8 {[%clk 0:00:13.5]} 59. Rxh5
{[%clk 0:01:23.4]} 59... Rg2 {[%clk 0:00:10.5]} 60. Rh4 {[%clk 0:01:22.1]} 60...
Rg1 {[%clk 0:00:09.5]} 61. Re4 {[%clk 0:01:21.6]} 61... Rg3 {[%clk 0:00:08.2]}
62. Re8# {[%clk 0:01:20.8]} 1-0